bitfinex-derivatives/quotes_BNBF0:USTF0_20250507
["timestamp","ask_amount","ask_price","bid_price","bid_amount"]
[1746622712294,0.28618656,608.8,607.05,2.56146215]
[1746622712498,0.30221039,608.79,607.05,2.56146215]
[1746622715094,0.30221039,608.93,607.05,2.56146215]
[1746622715399,0.28617244,608.78,607.05,2.56146215]
[1746622715594,0.30221039,608.92,607.05,2.56146215]
[1746622715899,0.30221039,608.77,607.05,2.56146215]
[1746622716199,0.30221039,608.93,607.05,2.56146215]
[1746622716396,0.30221039,608.92,607.05,2.56146215]
[1746622716601,0.28617244,608.76,607.05,2.56146215]
[1746622716800,0.30221039,608.91,607.05,2.56146215]
[1746622716995,0.2861748,608.75,607.05,2.56146215]
[1746622717401,0.30221039,608.74,607.05,2.56146215]
[1746622718097,0.30221039,608.93,607.05,2.56146215]
[1746622718298,0.2861948,608.73,607.05,2.56146215]
[1746622718502,0.30221039,608.93,607.05,2.56146215]
[1746622718702,0.30221039,608.72,607.05,2.56146215]
[1746622718898,0.30221039,608.93,607.05,2.56146215]
[1746622719403,0.28617244,608.92,607.05,2.56146215]
[1746622719803,0.30221039,608.91,607.05,2.56146215]
[1746622721199,0.2861748,608.9,607.05,2.56146215]
[1746622722806,0.30221039,608.89,607.05,2.56146215]
[1746622724205,0.28617715,608.88,607.05,2.56146215]
[1746622724505,0.30221039,608.87,607.05,2.56146215]
[1746622727308,0.2861795,608.86,607.05,2.56146215]
[1746622727608,0.30221039,608.85,607.05,2.56146215]
[1746622730110,0.32843958,608.94,607.05,2.56146215]
[1746622730308,0.28618186,608.84,607.05,2.56146215]
[1746622730513,0.30222147,608.93,607.05,2.56146215]
[1746622731815,0.28617244,608.92,607.05,2.56146215]
[1746622732410,0.30222147,608.91,607.05,2.56146215]
[1746622735516,0.30222147,608.9,607.05,2.56146215]
[1746622735918,0.30222147,608.89,607.05,2.56146215]
[1746622736316,0.30222147,608.88,607.05,2.56146215]
[1746622736619,0.30222147,608.87,607.05,2.56146215]
[1746622737017,0.30222147,608.86,607.05,2.56146215]
[1746622737317,0.30222147,608.85,607.05,2.56146215]
[1746622737618,0.30222147,608.84,607.05,2.56146215]
[1746622737919,0.30222147,608.83,607.05,2.56146215]
[1746622738319,0.30222147,608.82,607.05,2.56146215]
[1746622738622,0.30222147,608.81,607.05,2.56146215]
[1746622738921,0.30222147,608.84,607.05,2.56146215]
[1746622739221,0.28618303,608.8,607.05,2.56146215]
[1746622739621,0.30222147,608.79,607.05,2.56146215]
[1746622741625,0.28618303,608.8,607.05,2.56146215]
[1746622742022,0.3022156,608.79,607.05,2.56146215]
[1746622742225,0.28617244,608.79,607.05,2.56146215]
[1746622742625,0.3022156,608.78,607.05,2.56146215]
[1746622745226,0.28619009,608.77,607.05,2.56146215]
[1746622745525,0.3022156,608.76,607.05,2.56146215]
[1746622749229,0.28619009,608.77,607.05,2.56146215]
[1746622749529,0.30221434,608.76,607.05,2.56146215]
[1746622751424,0.28619245,608.75,607.05,2.56146215]
[1746622751824,0.30221434,608.74,607.05,2.56146215]
[1746622754226,0.2861948,608.73,607.05,2.56146215]
[1746622754826,0.30221434,608.72,607.05,2.56146215]
[1746622757326,0.28619716,608.71,607.05,2.56146215]
[1746622757724,0.30221434,608.7,607.05,2.56146215]
[1746622760335,0.30221434,608.93,607.05,2.56146215]
[1746622760536,0.28619951,608.69,607.05,2.56146215]
[1746622760828,0.30221434,608.93,607.05,2.56146215]
[1746622761532,0.28617244,608.92,607.05,2.56146215]
[1746622762033,0.30221434,608.91,607.05,2.56146215]
[1746622763129,0.30221434,608.9,607.05,2.56146215]
[1746622763433,0.58838678,608.9,607.05,2.56146215]
[1746622763633,0.30221434,608.89,607.05,2.56146215]
[1746622764836,1.55860846,608.89,607.05,2.56146215]
[1746622765537,0.30221434,608.88,607.05,2.56146215]
[1746622766435,0.28617833,608.87,607.05,2.56146215]
[1746622766636,0.30221434,608.86,607.05,2.56146215]
[1746622769339,0.28618068,608.85,607.05,2.56146215]
[1746622769640,0.30221434,608.84,607.05,2.56146215]
[1746622771345,0.28618068,608.85,607.05,2.56146215]
[1746622771745,0.30221062,608.84,607.05,2.56146215]
[1746622772544,0.28618303,608.83,607.05,2.56146215]
[1746622772744,0.30221062,608.82,607.05,2.56146215]
[1746622775344,0.28617127,608.81,607.05,2.56146215]
[1746622775745,0.30221062,608.8,607.05,2.56146215]
[1746622777744,0.28617127,608.81,607.05,2.56146215]
[1746622777943,0.32843958,608.94,607.05,2.56146215]
[1746622778141,0.30217497,608.8,607.05,2.56146215]
[1746622778340,0.30217497,608.93,607.05,2.56146215]
[1746622778546,0.58825802,608.93,607.05,2.56146215]
[1746622779045,0.30217497,608.92,607.05,2.56146215]
[1746622779243,0.28608305,608.93,607.05,2.56146215]
[1746622779444,0.30217412,608.92,607.05,2.56146215]
[1746622781252,0.28615479,608.91,607.05,2.56146215]
[1746622781652,0.30217412,608.9,607.05,2.56146215]
[1746622784152,0.30217412,608.93,607.05,2.56146215]
[1746622784451,0.28615715,608.89,607.05,2.56146215]
[1746622784848,0.30217412,608.88,607.05,2.56146215]
[1746622787553,0.2861595,608.87,607.05,2.56146215]
[1746622787754,0.30217412,608.86,607.05,2.56146215]
[1746622790357,0.28615362,608.85,607.05,2.56146215]
[1746622790658,0.30217412,608.84,607.05,2.56146215]
[1746622792757,0.28615362,608.85,607.05,2.56146215]
[1746622792957,0.32843958,608.94,607.05,2.56146215]
[1746622793152,0.30217491,608.84,607.05,2.56146215]
[1746622793457,0.28615362,608.84,607.05,2.56146215]
[1746622793653,0.30217491,608.93,607.05,2.56146215]
[1746622793855,0.30217491,608.83,607.05,2.56146215]
[1746622794053,0.30217491,608.93,607.05,2.56146215]
[1746622794358,0.28615362,608.82,607.05,2.56146215]
[1746622794655,0.32843958,608.94,607.05,2.56146215]
[1746622794959,0.28615479,608.81,607.05,2.56146215]
[1746622795157,0.30217782,608.93,607.05,2.56146215]
[1746622795353,0.30217782,608.8,607.05,2.56146215]
[1746622795558,0.28615479,608.8,607.05,2.56146215]
[1746622795961,0.30217782,608.79,607.05,2.56146215]
[1746622796161,0.30217782,608.93,607.05,2.56146215]
[1746622796361,0.28615479,608.79,607.05,2.56146215]
[1746622796556,0.30217782,608.93,607.05,2.56146215]
[1746622797361,0.28615362,608.92,607.05,2.56146215]
[1746622797963,0.30217782,608.91,607.05,2.56146215]
[1746622799164,0.30217782,608.93,607.05,2.56146215]
[1746622799365,0.28615597,608.9,607.05,2.56146215]
[1746622799861,0.30217782,608.89,607.05,2.56146215]
[1746622802165,0.28615832,608.88,607.05,2.56146215]
[1746622802567,0.30217782,608.87,607.05,2.56146215]
[1746622803768,0.28615832,608.88,607.05,2.56146215]
[1746622803963,0.30217499,608.87,607.05,2.56146215]
[1746622805267,0.58833567,608.86,607.05,2.56146215]
[1746622805467,0.30217499,608.85,607.05,2.56146215]
[1746622807471,0.28616068,608.86,607.05,2.56146215]
[1746622807669,0.30217455,608.85,607.05,2.56146215]
[1746622811272,0.28618656,608.84,607.05,2.56146215]
[1746622811474,0.30217455,608.83,607.05,2.56146215]
[1746622812975,0.28618656,608.84,607.05,2.56146215]
[1746622813172,0.30223397,608.83,607.05,2.56146215]
[1746622814269,0.2862101,608.82,607.05,2.56146215]
[1746622814771,0.30223397,608.81,607.05,2.56146215]
[1746622817377,0.28619833,608.8,607.05,2.56146215]
[1746622817778,0.30223397,608.79,607.05,2.56146215]
[1746622820280,0.28621481,608.78,607.05,2.56146215]
[1746622820781,0.30223397,608.77,607.05,2.56146215]
[1746622823278,0.28624071,608.76,607.05,2.56146215]
[1746622823481,0.30223397,608.75,607.05,2.56146215]
[1746622826383,0.28622187,608.74,607.05,2.56146215]
[1746622826785,0.30223397,608.73,607.05,2.56146215]
[1746622828086,0.30223397,608.72,607.05,2.56146215]
[1746622828479,0.30223397,608.71,607.05,2.56146215]
[1746622828783,0.30223397,608.7,607.05,2.56146215]
[1746622828984,0.30223397,608.73,607.05,2.56146215]
[1746622829284,0.28624541,608.69,607.05,2.56146215]
[1746622829686,0.30223397,608.68,607.05,2.56146215]
[1746622830086,0.30223397,608.67,607.05,2.56146215]
[1746622830283,0.28624541,608.69,607.05,2.56146215]
[1746622830784,0.30235078,608.68,607.05,2.56146215]
[1746622831085,0.30235078,608.67,607.05,2.56146215]
[1746622831387,0.30235078,608.68,607.05,2.56146215]
[1746622831879,0.30235078,608.67,607.05,2.56146215]
[1746622832283,0.58862563,608.67,607.05,2.56146215]
[1746622832479,0.30235078,608.66,607.05,2.56146215]
[1746622835188,0.30235078,608.91,607.05,2.56146215]
[1746622835385,0.28624777,608.65,607.05,2.56146215]
[1746622835690,0.30235078,608.9,607.05,2.56146215]
[1746622835891,0.32846655,608.89,607.05,2.56146215]
[1746622836091,0.63081733,608.89,607.05,2.56146215]
[1746622836490,0.58860208,608.88,607.05,2.56146215]
[1746622836791,0.30235078,608.87,607.05,2.56146215]
[1746622837090,0.30235078,608.86,607.05,2.56146215]
[1746622837386,0.30235078,608.85,607.05,2.56146215]
[1746622837793,0.6308443,608.84,607.05,2.56146215]
[1746622838190,0.32850431,608.82,607.05,2.56146215]
[1746622838587,0.30235078,608.81,607.05,2.56146215]
[1746622838791,0.32851511,608.8,607.05,2.56146215]
[1746622838990,0.30235078,608.79,607.05,2.56146215]
[1746622839187,0.3285259,608.78,607.05,2.56146215]
[1746622839694,0.30235078,608.77,607.05,2.56146215]
[1746622839887,0.32853669,608.76,607.05,2.56146215]
[1746622840192,0.30235078,608.75,607.05,2.56146215]
[1746622840393,0.32854749,608.74,607.05,2.56146215]
[1746622840793,0.30235078,608.73,607.05,2.56146215]
[1746622840993,0.32855828,608.72,607.05,2.56146215]
[1746622841290,0.30235078,608.71,607.05,2.56146215]
[1746622841494,0.32856908,608.7,607.05,2.56146215]
[1746622842091,0.30235078,608.69,607.05,2.56146215]
[1746622842393,0.32857987,608.68,607.05,2.56146215]
[1746622842996,0.30235078,608.67,607.05,2.56146215]
[1746622843196,0.32859067,608.66,607.05,2.56146215]
[1746622843594,0.30235078,608.65,607.05,2.56146215]
[1746622844194,0.28629722,608.64,607.05,2.56146215]
[1746622844394,0.30235078,608.63,607.05,2.56146215]
[1746622844794,0.30235078,608.62,607.05,2.56146215]
[1746622844993,0.30235078,608.61,607.05,2.56146215]
[1746622845400,0.30235078,608.6,607.05,2.56146215]
[1746622845702,0.30235078,608.59,607.05,2.56146215]
[1746622846201,0.30235078,608.58,607.05,2.56146215]
[1746622846702,0.30235078,608.57,607.05,2.56146215]
[1746622847201,0.30235078,608.56,607.05,2.56146215]
[1746622847403,0.30235078,608.55,607.05,2.56146215]
[1746622847702,0.30235078,608.63,607.05,2.56146215]
[1746622848002,0.32861227,608.62,607.05,2.56146215]
[1746622848201,0.63096305,608.62,607.05,2.56146215]
[1746622848395,0.32861227,608.62,607.05,2.56146215]
[1746622848703,0.30243435,608.61,607.05,2.56146215]
[1746622849304,0.30243435,608.6,607.05,2.56146215]
[1746622849705,0.32862846,608.59,607.05,2.56146215]
[1746622849905,0.63106281,608.59,607.05,2.56146215]
[1746622850203,0.30243435,608.58,607.05,2.56146215]
[1746622850504,0.30243435,608.57,607.05,2.56146215]
[1746622850799,0.30243435,608.56,607.05,2.56146215]
[1746622851105,0.30243435,608.55,607.05,2.56146215]
[1746622851404,0.30243435,608.54,607.05,2.56146215]
[1746622851705,0.30243435,608.57,607.05,2.56146215]
[1746622852399,0.63107901,608.56,607.05,2.56146215]
[1746622852703,0.63108441,608.55,607.05,2.56146215]
[1746622852903,0.63108982,608.54,607.05,2.56146215]
[1746622853205,0.63109522,608.53,607.05,2.56146215]
[1746622853405,0.32866627,608.52,607.05,2.56146215]
[1746622853602,0.63110062,608.52,607.05,2.56146215]
[1746622853906,0.30243435,608.51,607.05,2.56146215]
[1746622854106,0.30243435,608.5,607.05,2.56146215]
[1746622854406,0.32866627,608.52,607.05,2.56146215]
[1746622854607,0.30245746,608.51,607.05,2.56146215]
[1746622855007,0.32866627,608.52,607.05,2.56146215]
[1746622855008,0.30245746,608.5,607.05,2.56146215]
[1746622855206,0.30245746,608.49,607.05,2.56146215]
[1746622855602,0.30245746,608.48,607.05,2.56146215]
[1746622856010,0.30245746,608.47,607.05,2.56146215]
[1746622856309,0.58880887,608.47,607.05,2.56146215]
[1746622856511,0.30245746,608.46,607.05,2.56146215]
[1746622857011,0.30245746,608.45,607.05,2.56146215]
[1746622857208,0.30245746,608.44,607.05,2.56146215]
[1746622857404,0.30245746,608.43,607.05,2.56146215]
[1746622857712,0.30245746,608.42,607.05,2.56146215]
[1746622858110,0.30245746,608.41,607.05,2.56146215]
[1746622858410,0.30245746,608.4,607.05,2.56146215]
[1746622858710,0.30245746,608.39,607.05,2.56146215]
[1746622858910,0.30245746,608.38,607.05,2.56146215]
[1746622859310,0.30245746,608.37,607.05,2.56146215]
[1746622859612,0.30245746,608.36,607.05,2.56146215]
[1746622859908,0.30245746,608.37,607.05,2.56146215]
[1746622860213,0.30245746,608.36,607.05,2.56146215]
[1746622860413,0.2863573,608.38,607.05,2.56146215]
[1746622860709,0.30248133,608.37,607.05,2.56146215]
[1746622861110,0.30248133,608.36,607.05,2.56146215]
[1746622861414,0.30248133,608.37,607.05,2.56146215]
[1746622862214,0.2863679,608.36,607.05,2.56146215]
[1746622862615,0.30248133,608.35,607.05,2.56146215]
[1746622867118,0.32876352,608.34,607.05,2.56146215]
[1746622867521,0.30248133,608.33,607.05,2.56146215]
[1746622868216,0.2864174,608.32,607.05,2.56146215]
[1746622869025,0.30248133,608.31,607.05,2.56146215]
[1746622871423,0.28641975,608.3,607.05,2.56146215]
[1746622872324,0.30248133,608.29,607.05,2.56146215]
[1746622874218,0.28639854,608.28,607.05,2.56146215]
[1746622875025,0.30251616,608.27,607.05,2.56146215]
[1746622877327,0.28638911,608.26,607.05,2.56146215]
[1746622877527,0.30251616,608.25,607.05,2.56146215]
[1746622883332,0.30251616,608.33,607.05,2.56146215]
[1746622883534,0.28638911,608.24,607.05,2.56146215]
[1746622883731,0.30251616,608.33,607.05,2.56146215]
[1746622885033,0.28638911,608.32,607.05,2.56146215]
[1746622885333,0.30251616,608.31,607.05,2.56146215]
[1746622886230,0.28639147,608.3,607.05,2.56146215]
[1746622887027,0.30251616,608.29,607.05,2.56146215]
[1746622889331,0.28639854,608.28,607.05,2.56146215]
[1746622889635,0.30251616,608.27,607.05,2.56146215]
[1746622892236,0.30251616,608.33,607.05,2.56146215]
[1746622892437,0.28638675,608.26,607.05,2.56146215]
[1746622892931,0.30251616,608.25,607.05,2.56146215]
[1746622895335,0.28640325,608.24,607.05,2.56146215]
[1746622895640,0.30251616,608.23,607.05,2.56146215]
[1746622898346,0.28640561,608.22,607.05,2.56146215]
[1746622898546,0.30251616,608.21,607.05,2.56146215]
[1746622900448,0.30251616,608.21,607.05,2.232]
[1746622901249,0.28641504,608.2,607.05,2.232]
[1746622901644,0.30251616,608.19,607.05,2.232]
[1746622903857,0.30251616,608.19,607.05,2.232]
[1746622904257,0.2864174,608.18,607.05,2.232]
[1746622904957,0.30251616,608.17,607.05,2.232]
[1746622907358,0.30251616,608.6,607.05,2.232]
[1746622907559,0.28636908,608.16,607.05,2.232]
[1746622907758,0.30251616,608.59,607.05,2.232]
[1746622908059,0.28637026,608.15,607.05,2.232]
[1746622908359,0.30251616,608.58,607.05,2.232]
[1746622908559,0.30251616,608.14,607.05,2.232]
[1746622909061,0.30251616,608.6,607.05,2.232]
[1746622909257,0.28636908,608.13,607.05,2.232]
[1746622909663,0.30251616,608.59,607.05,2.232]
[1746622909863,0.58888642,608.12,607.05,2.232]
[1746622910063,0.30251616,608.11,607.05,2.232]
[1746622910364,0.30251616,608.37,607.05,2.232]
[1746622910765,0.30251616,608.36,607.05,2.232]
[1746622911063,0.30251616,608.35,607.05,2.232]
[1746622911261,0.58891941,608.35,607.05,2.232]
[1746622911567,0.30251616,608.34,607.05,2.232]
[1746622911960,0.30251616,608.33,607.05,2.232]
[1746622912262,0.30251616,608.32,607.05,2.232]
[1746622912462,0.30251616,608.31,607.05,2.232]
[1746622912868,0.30251616,608.3,607.05,2.232]
[1746622913070,0.30251616,608.29,607.05,2.232]
[1746622913464,0.30251616,608.28,607.05,2.232]
[1746622913769,0.30251616,608.27,607.05,2.232]
[1746622914270,0.30251616,608.26,607.05,2.232]
[1746622914868,0.30251616,608.25,607.05,2.232]
[1746622915169,0.30251616,608.24,607.05,2.232]
[1746622915566,0.30251616,608.23,607.05,2.232]
[1746622915764,0.30251616,608.22,607.05,2.232]
[1746622916170,0.30251616,608.21,607.05,2.232]
[1746622916365,0.58894652,608.21,607.05,2.232]
[1746622916666,0.30251616,608.2,607.05,2.232]
[1746622917072,0.30251616,608.19,607.05,2.232]
[1746622917472,0.30251616,608.2,607.05,2.232]
[1746622919268,0.28643272,608.19,607.05,2.232]
[1746622919672,0.30251616,608.18,607.05,2.232]
[1746622922479,0.28645158,608.17,607.05,2.232]
[1746622922971,0.30251616,608.16,607.05,2.232]
[1746622928274,0.28643743,608.15,607.05,2.232]
[1746622928578,0.30251616,608.14,607.05,2.232]
[1746622931274,0.28643979,608.13,607.05,2.232]
[1746622931975,0.30257588,608.12,607.05,2.232]
[1746622932376,0.30257588,608.12,607.06,0.32945672]
[1746622934581,0.28643743,608.11,607.06,0.32945672]
[1746622934774,0.30257588,608.1,607.06,0.32945672]
[1746622935583,0.30257588,608.1,607.06,0.97345672]
[1746622936085,0.30257588,608.1,607.06,1.51945672]
[1746622937278,0.28641975,608.09,607.06,1.51945672]
[1746622938379,0.30257588,608.08,607.06,1.51945672]
[1746622938979,0.28641975,608.09,607.06,1.51945672]
[1746622939385,0.30252883,608.08,607.06,1.51945672]
[1746622940487,0.28641975,608.07,607.06,1.51945672]
[1746622940882,0.30252883,608.06,607.06,1.51945672]
[1746622941586,0.30252883,608.06,607.06,1.96045672]
[1746622944893,0.30252883,608.06,607.06,2.49645672]
[1746622946187,1.25639412,608.47,607.06,2.49645672]
[1746622946393,0.28641975,608.05,607.06,2.49645672]
[1746622946592,0.30252883,608.46,607.06,2.49645672]
[1746622947288,0.28637261,608.45,607.06,2.49645672]
[1746622947494,0.32870948,608.44,607.06,2.49645672]
[1746622947793,0.63123831,608.44,607.06,2.49645672]
[1746622947994,0.30252883,608.43,607.06,2.49645672]
[1746622948188,0.32872029,608.42,607.06,2.49645672]
[1746622948591,0.30252883,608.41,607.06,2.49645672]
[1746622948993,0.32873109,608.4,607.06,2.49645672]
[1746622949294,0.30252883,608.39,607.06,2.49645672]
[1746622950191,0.63126533,608.39,607.06,2.49645672]
[1746622950694,0.30252883,608.38,607.06,2.49645672]
[1746622954895,0.3287473,608.37,607.06,2.49645672]
[1746622955096,0.30252883,608.36,607.06,2.49645672]
[1746622955289,0.32875811,608.35,607.06,2.49645672]
[1746622955490,0.30252883,608.34,607.06,2.49645672]
[1746622957695,0.6151651,608.33,607.06,2.49645672]
[1746622957893,0.32877432,608.32,607.06,2.49645672]
[1746622958089,0.63130315,608.32,607.06,2.49645672]
[1746622958289,0.30252883,608.31,607.06,2.49645672]
[1746622958489,0.32878513,608.3,607.06,2.49645672]
[1746622958702,0.30252883,608.29,607.06,2.49645672]
[1746622958902,0.32879594,608.28,607.06,2.49645672]
[1746622959101,0.30252883,608.27,607.06,2.49645672]
[1746622959401,0.61523712,608.26,607.06,2.49645672]
[1746622959597,0.32881216,608.25,607.06,2.49645672]
[1746622959798,0.63134099,608.25,607.06,2.49645672]
[1746622960403,0.30252883,608.24,607.06,2.49645672]
[1746622960603,0.6313464,608.24,607.06,2.49645672]
[1746622961000,0.32881757,608.24,607.06,2.49645672]
[1746622961397,0.58901128,608.23,607.06,2.49645672]
[1746622961598,0.3025762,608.22,607.06,2.49645672]
[1746622966509,0.28643508,608.23,607.06,2.49645672]
[1746622966805,0.30258786,608.22,607.06,2.49645672]
[1746622967510,0.28643626,608.21,607.06,2.49645672]
[1746622968012,0.30258786,608.2,607.06,2.49645672]
[1746622970915,0.28643626,608.21,607.06,2.49645672]
[1746622971216,0.30258572,608.2,607.06,2.49645672]
[1746622973413,0.28643861,608.19,607.06,2.49645672]
[1746622973914,0.30258572,608.18,607.06,2.49645672]
[1746622976316,0.28642447,608.17,607.06,2.49645672]
[1746622976711,0.30254741,608.16,607.06,2.49645672]
[1746622979112,0.32881757,608.24,607.06,2.49645672]
[1746622979514,0.2864115,608.15,607.06,2.49645672]
[1746622979712,0.30251801,608.14,607.06,2.49645672]
[1746622980316,0.28639854,608.14,607.06,2.49645672]
[1746622980512,0.30251801,608.13,607.06,2.49645672]
[1746622982318,0.28640915,608.12,607.06,2.49645672]
[1746622982518,0.30251801,608.11,607.06,2.49645672]
[1746622983215,0.28640915,608.12,607.06,2.49645672]
[1746622983619,0.30251361,608.11,607.06,2.49645672]
[1746622988327,0.2864115,608.1,607.06,2.49645672]
[1746622988526,0.58892511,608.1,607.06,2.49645672]
[1746622988725,0.2864115,608.1,607.06,2.49645672]
[1746622989226,0.30251698,608.09,607.06,2.49645672]
[1746622989721,0.2864115,608.1,607.06,2.49645672]
[1746622989926,0.30252037,608.09,607.06,2.49645672]
[1746622991623,0.28641386,608.08,607.06,2.49645672]
[1746622991827,0.30252037,608.07,607.06,2.49645672]
[1746622994325,0.28641622,608.06,607.06,2.49645672]
[1746622995028,0.30252037,608.05,607.06,2.49645672]
[1746622997528,0.28641857,608.04,607.06,2.49645672]
[1746622998131,0.30252037,608.03,607.06,2.49645672]
[1746623000329,0.28642093,608.02,607.06,2.49645672]
[1746623000526,0.30252037,608.01,607.06,2.49645672]
[1746623001129,0.28642093,608.02,607.06,2.49645672]
[1746623001324,0.30252185,608.01,607.06,2.49645672]
[1746623001723,0.28642093,608.02,607.06,2.49645672]
[1746623002430,0.30252187,608.01,607.06,2.49645672]
[1746623002729,0.28642093,608.02,607.06,2.49645672]
[1746623003229,0.32881757,608.24,607.06,2.49645672]
[1746623003430,0.28639736,608.01,607.06,2.49645672]
[1746623003626,0.30252202,608.23,607.06,2.49645672]
[1746623004131,0.32881757,608.24,607.06,2.49645672]
[1746623004324,0.30252178,608.23,607.06,2.49645672]
[1746623004528,0.5888402,608.23,607.06,2.49645672]
[1746623005025,0.30252178,608.22,607.06,2.49645672]
[1746623006526,0.28639854,608.21,607.06,2.49645672]
[1746623006728,0.30252178,608.2,607.06,2.49645672]
[1746623009331,0.30252178,608.23,607.06,2.49645672]
[1746623009633,0.28639736,608.19,607.06,2.49645672]
[1746623010027,0.30252178,608.18,607.06,2.49645672]
[1746623011333,0.28639736,608.19,607.06,2.49645672]
[1746623011633,0.30252577,608.18,607.06,2.49645672]
[1746623012432,0.28640797,608.17,607.06,2.49645672]
[1746623012834,0.30252577,608.16,607.06,2.49645672]
[1746623013433,0.28640797,608.17,607.06,2.49645672]
[1746623013738,0.30252269,608.16,607.06,2.49645672]
[1746623015334,0.28641032,608.15,607.06,2.49645672]
[1746623015739,0.30252269,608.14,607.06,2.49645672]
[1746623018441,0.2864174,608.13,607.06,2.49645672]
[1746623018741,0.30252269,608.12,607.06,2.49645672]
[1746623021347,0.28641975,608.11,607.06,2.49645672]
[1746623021847,0.30252269,608.1,607.06,2.49645672]
[1746623022346,0.28641975,608.11,607.06,2.49645672]
[1746623022746,0.30256087,608.1,607.06,2.49645672]
[1746623024442,0.2864339,608.09,607.06,2.49645672]
[1746623024644,0.30256087,608.08,607.06,2.49645672]
[1746623027450,0.28642683,608.07,607.06,2.49645672]
[1746623027849,0.30256087,608.06,607.06,2.49645672]
[1746623029951,0.28642683,608.07,607.06,2.49645672]
[1746623030151,0.32881757,608.24,607.06,2.49645672]
[1746623030352,0.28636672,608.11,607.06,2.49645672]
[1746623030652,0.32881757,608.24,607.06,2.49645672]
[1746623030952,0.3024494,608.23,607.06,2.49645672]
[1746623031556,0.28636672,608.22,607.06,2.49645672]
[1746623032753,0.30246553,608.21,607.06,2.49645672]
[1746623033349,0.28638086,608.2,607.06,2.49645672]
[1746623033554,0.30246553,608.19,607.06,2.49645672]
[1746623034853,0.28638086,608.2,607.06,2.49645672]
[1746623035153,0.30248114,608.19,607.06,2.49645672]
[1746623036255,0.32881757,608.24,607.06,2.49645672]
[1746623036556,0.30247971,608.23,607.06,2.49645672]
[1746623037454,0.28637851,608.22,607.06,2.49645672]
[1746623037851,0.30247971,608.21,607.06,2.49645672]
[1746623042452,0.28639972,608.2,607.06,2.49645672]
[1746623042760,0.30247971,608.19,607.06,2.49645672]
[1746623045364,0.28640679,608.18,607.06,2.49645672]
[1746623045665,0.30247971,608.17,607.06,2.49645672]
[1746623047464,0.28640679,608.18,607.06,2.49645672]
[1746623047863,0.30253127,608.17,607.06,2.49645672]
[1746623048462,0.28641622,608.16,607.06,2.49645672]
[1746623048667,0.30253127,608.15,607.06,2.49645672]
[1746623051265,0.30253127,608.23,607.06,2.49645672]
[1746623051463,0.28642093,608.14,607.06,2.49645672]
[1746623051662,0.30253127,608.13,607.06,2.49645672]
[1746623052065,0.30253127,608.23,607.06,2.49645672]
[1746623052473,0.2864115,608.22,607.06,2.49645672]
[1746623052670,0.30253127,608.21,607.06,2.49645672]
[1746623053074,0.2864115,608.22,607.06,2.49645672]
[1746623053466,0.30253206,608.21,607.06,2.49645672]
[1746623054273,0.30253206,608.23,607.06,2.49645672]
[1746623054477,0.28640797,608.2,607.06,2.49645672]
[1746623054777,0.30253206,608.19,607.06,2.49645672]
[1746623057276,0.30253206,608.23,607.06,2.49645672]
[1746623057472,0.2864115,608.18,607.06,2.49645672]
[1746623057673,0.30253206,608.17,607.06,2.49645672]
[1746623059974,0.2864115,608.18,607.06,2.49645672]
[1746623060178,0.32881757,608.24,607.06,2.49645672]
[1746623060378,0.30251331,608.17,607.06,2.49645672]
[1746623060579,0.28640679,608.17,607.06,2.49645672]
[1746623060978,0.30251331,608.16,607.06,2.49645672]
[1746623063378,0.28641504,608.15,607.06,2.49645672]
[1746623067887,0.28641504,608.15,607.06,1.95045672]
[1746623068586,0.28641504,608.15,607.06,1.30645672]
[1746623069080,0.30251331,608.16,607.06,1.30645672]
[1746623069284,0.30251331,608.16,607.06,0.86545672]
[1746623069487,0.28641622,608.14,607.06,0.86545672]
[1746623070387,0.28641622,608.14,607.06,0.32945672]
[1746623072189,0.32881757,608.24,607.06,0.32945672]
[1746623072384,0.28641268,608.13,607.06,0.32945672]
[1746623072889,0.32881757,608.24,607.06,0.32945672]
[1746623073591,0.28638675,608.23,607.06,0.32945672]
[1746623075094,0.32881757,608.24,607.06,0.32945672]
[1746623075489,0.28645276,608.23,607.06,0.32945672]
[1746623078097,0.32881757,608.24,607.06,0.32945672]
[1746623078598,0.28642565,608.23,607.06,0.32945672]
[1746623081100,0.32881757,608.24,607.06,0.32945672]
[1746623081396,0.28642447,608.22,607.06,0.32945672]
[1746623083999,0.30254522,608.21,607.06,0.32945672]
[1746623084404,0.30254522,608.23,607.06,0.32945672]
[1746623084596,0.28647988,608.2,607.06,0.32945672]
[1746623085103,0.30255113,608.19,607.06,0.32945672]
[1746623087405,0.30255113,608.18,607.06,0.32945672]
[1746623087600,0.28647988,608.18,607.06,0.32945672]
[1746623087798,0.30255113,608.17,607.06,0.32945672]
[1746623088003,0.28647988,608.18,607.06,0.32945672]
[1746623088201,0.30254806,608.17,607.06,0.32945672]
[1746623088402,0.28647988,608.18,607.06,0.32945672]
[1746623088603,0.30254789,608.17,607.06,0.32945672]
[1746623090204,0.28647988,608.18,607.06,0.32945672]
[1746623090404,0.30254794,608.17,607.06,0.32945672]
[1746623093405,0.30254794,608.23,607.06,0.32945672]
[1746623093606,0.28647045,608.16,607.06,0.32945672]